bitfinex-derivatives/quotes_BTCF0:USTF0_20250720
["timestamp","ask_amount","ask_price","bid_price","bid_amount"]
[1753049120595,0.48949,117810.0,117800.0,2.79672497]
[1753049120793,0.49649,117810.0,117800.0,2.79772497]
[1753049121190,0.48949,117810.0,117800.0,2.79672497]
[1753049121401,0.49049,117810.0,117800.0,2.75407283]
[1753049121900,0.48749,117810.0,117800.0,2.75507283]
[1753049122098,0.46462,117810.0,117800.0,2.80072497]
[1753049122299,0.292,117810.0,117800.0,2.75507283]
[1753049123197,0.292,117810.0,117800.0,2.5209175]
[1753049123401,0.292,117810.0,117800.0,2.75507283]
[1753049129404,0.45661,117810.0,117800.0,2.75507283]
[1753049130008,0.292,117810.0,117800.0,2.75507283]
[1753049131210,0.292,117810.0,117800.0,2.92031332]
[1753049137205,0.052,117810.0,117800.0,3.28031332]
[1753049137410,0.052,117810.0,117800.0,3.45008931]
[1753049137707,0.292,117810.0,117800.0,3.44008931]
[1753049138113,0.292,117810.0,117800.0,3.09008931]
[1753049138510,0.292,117810.0,117800.0,3.47008931]
[1753049138714,0.292,117810.0,117800.0,3.09008931]
[1753049138915,0.292,117810.0,117800.0,3.13574145]
[1753049139710,0.292,117810.0,117800.0,3.48574145]
[1753049140016,0.292,117810.0,117800.0,3.13574145]
[1753049141215,0.292,117810.0,117800.0,2.32432546]
[1753049141514,1.33515671,117810.0,117800.0,2.02948848]
[1753049141711,1.33515671,117810.0,117800.0,1.17864]
[1753049141912,1.1354588,117810.0,117800.0,1.17864]
[1753049142109,1.33515671,117810.0,117800.0,0.005]
[1753049142418,1.35220309,117810.0,117800.0,1.81456]
[1753049142815,1.35220309,117810.0,117800.0,1.9842632]
[1753049143022,1.35220309,117810.0,117800.0,1.3483432]
[1753049143220,1.15250518,117810.0,117800.0,1.9841432]
[1753049143622,0.62201638,117810.0,117800.0,2.18384111]
[1753049143914,0.60497,117810.0,117800.0,2.18384111]
[1753049144119,0.49132,117810.0,117800.0,2.74381902]
[1753049144319,0.47994,117810.0,117800.0,2.74381902]
[1753049144519,0.47994,117810.0,117800.0,2.54412111]
[1753049145119,0.47994,117810.0,117800.0,2.57846353]
[1753049147018,0.96577,117810.0,117800.0,1.58238353]
[1753049147211,1.1354588,117810.0,117800.0,0.1747032]
[1753049147411,1.1354588,117810.0,117800.0,1.9828232]
[1753049148123,1.1354588,117810.0,117800.0,2.21686353]
[1753049148317,0.96577,117810.0,117800.0,2.21686353]
[1753049148518,0.60497,117810.0,117800.0,2.21686353]
[1753049148720,0.96577,117810.0,117800.0,2.21686353]
[1753049150225,1.15254017,117810.0,117800.0,2.21686353]
[1753049150521,1.15254017,117810.0,117800.0,1.9823432]
[1753049151021,0.98285137,117810.0,117800.0,2.21638353]
[1753049152423,0.50840137,117810.0,117800.0,2.21638353]
[1753049154030,0.53960137,117810.0,117800.0,2.21638353]
[1753049154535,0.45661,117810.0,117800.0,2.57574353]
[1753049154925,0.39661,117810.0,117800.0,2.80978386]
[1753049155328,0.39661,117810.0,117800.0,3.19540914]
[1753049155329,0.232,117810.0,117800.0,3.19540914]
[1753049156634,0.17108,117820.0,117810.0,0.1696888]
[1753049156933,0.45108,117820.0,117810.0,0.76452913]
[1753049157334,0.45108,117820.0,117810.0,0.81015441]
[1753049158238,0.45108,117820.0,117810.0,0.810239]
[1753049159139,0.45208,117820.0,117810.0,0.812239]
[1753049159534,0.47596,117820.0,117810.0,0.816239]
[1753049159936,0.47596,117820.0,117810.0,1.447159]
[1753049161640,1.1277644,117820.0,117810.0,1.39507867]
[1753049161840,1.1277644,117820.0,117810.0,2.02523867]
[1753049162038,1.1277644,117820.0,117810.0,2.259279]
[1753049162541,0.95809,117820.0,117810.0,2.259279]
[1753049163041,0.95809,117820.0,117810.0,2.259559]
[1753049163240,0.95809,117820.0,117810.0,2.21384913]
[1753049163943,0.95809,117820.0,117810.0,2.259559]
[1753049164441,1.1277643,117820.0,117810.0,1.39507867]
[1753049164644,0.95809,117820.0,117810.0,2.21360913]
[1753049165241,0.95809,117820.0,117810.0,2.259319]
[1753049165743,0.95809,117820.0,117810.0,1.629119]
[1753049165948,0.95809,117820.0,117810.0,2.259759]
[1753049166148,0.84838,117820.0,117810.0,2.259759]
[1753049169246,0.48758,117820.0,117810.0,2.620559]
[1753049171048,0.48758,117820.0,117810.0,2.38651867]
[1753049171249,0.48758,117820.0,117810.0,2.58620221]
[1753049172450,0.48758,117820.0,117810.0,2.22540221]
[1753049172651,0.48758,117820.0,117810.0,2.58620221]
[1753049172848,0.52024,117820.0,117810.0,2.58620221]
[1753049178155,0.52024,117820.0,117810.0,2.54049234]
[1753049178546,0.52024,117820.0,117810.0,1.90985234]
[1753049178751,0.52024,117820.0,117810.0,2.53621234]
[1753049179653,0.47596,117820.0,117810.0,2.53621234]
[1753049180156,0.47596,117820.0,117810.0,2.59658269]
[1753049180655,0.17108,117830.0,117820.0,0.1696743]
[1753049180851,0.55476,117840.0,117830.0,0.1696599]
[1753049181054,0.83476,117840.0,117830.0,0.36934344]
[1753049181354,0.87904,117840.0,117830.0,0.36934344]
[1753049181654,0.51824,117840.0,117830.0,0.77588449]
[1753049182056,0.59529,117840.0,117830.0,0.77588449]
[1753049183360,0.59629,117840.0,117830.0,0.77788449]
[1753049183660,0.59629,117840.0,117830.0,0.85966857]
[1753049183853,0.59629,117840.0,117830.0,0.86474212]
[1753049184160,0.59629,117840.0,117830.0,0.80437177]
[1753049184355,0.59629,117840.0,117830.0,0.86474212]
[1753049185261,0.59629,117840.0,117830.0,0.80437177]
[1753049185661,0.59629,117840.0,117830.0,0.86474212]
[1753049186163,0.59629,117840.0,117830.0,0.80437177]
[1753049188361,0.59629,117840.0,117830.0,0.85010008]
[1753049189163,0.59629,117840.0,117830.0,0.8500962]
[1753049189360,0.47496,117840.0,117830.0,0.80437177]
[1753049190266,0.47496,117840.0,117830.0,0.85008983]
[1753049190664,0.5184,117840.0,117830.0,0.85008983]
[1753049190965,0.59628,117840.0,117830.0,0.85008983]
[1753049191567,0.59628,117840.0,117830.0,1.47276983]
[1753049192567,0.59628,117840.0,117830.0,0.85008983]
[1753049192767,0.59628,117840.0,117830.0,1.47248983]
[1753049193467,0.59628,117840.0,117830.0,0.85008983]
[1753049193668,0.59628,117840.0,117830.0,1.47188983]
[1753049194272,0.59628,117840.0,117830.0,1.42617177]
[1753049194570,0.59628,117840.0,117830.0,0.80437177]
[1753049194768,0.59628,117840.0,117830.0,1.42617177]
[1753049194969,0.59628,117840.0,117830.0,1.47188164]
[1753049195165,0.59628,117840.0,117830.0,1.42617177]
[1753049196271,0.04852,117850.0,117840.0,0.2540355]
[1753049196467,0.07338,117860.0,117850.0,0.2540211]
[1753049196668,0.36338,117860.0,117850.0,1.58165041]
[1753049196868,0.36338,117860.0,117850.0,1.58164988]
[1753049197170,0.36338,117860.0,117850.0,1.58163799]
[1753049197365,0.36338,117860.0,117850.0,1.49631499]
[1753049197678,0.40682,117860.0,117850.0,1.49631499]
[1753049197865,0.4847,117860.0,117850.0,1.29663145]
[1753049198070,0.4857,117860.0,117850.0,0.87787499]
[1753049198267,0.60745,117860.0,117850.0,1.43870464]
[1753049198666,0.60745,117860.0,117850.0,1.43854464]
[1753049199362,0.60745,117860.0,117850.0,1.44054464]
[1753049199564,0.291,117860.0,117850.0,1.44054464]
[1753049200073,0.291,117860.0,117850.0,1.79054464]
[1753049200372,0.291,117860.0,117850.0,1.44054464]
[1753049200763,0.33952,117860.0,117850.0,1.44054464]
[1753049200965,0.46127,117860.0,117850.0,1.44054464]
[1753049201169,0.48613,117860.0,117850.0,1.48618779]
[1753049201870,0.48613,117860.0,117850.0,1.48642779]
[1753049202573,0.48613,117860.0,117850.0,1.44078464]
[1753049203271,0.48613,117860.0,117850.0,1.48641546]
[1753049203474,0.46127,117860.0,117850.0,1.44078464]
[1753049203869,0.48613,117860.0,117850.0,1.48641546]
[1753049204068,0.48613,117860.0,117850.0,1.44078464]
[1753049204271,0.48613,117860.0,117850.0,1.48640948]
[1753049204969,0.48613,117860.0,117850.0,1.43986464]
[1753049205170,0.48613,117860.0,117850.0,1.4854896]
[1753049205371,0.48613,117860.0,117850.0,0.8651296]
[1753049205564,0.60745,117860.0,117850.0,0.8326696]
[1753049205773,0.60745,117860.0,117850.0,0.84045606]
[1753049206077,1.33755024,117860.0,117850.0,0.005]
[1753049206269,1.33755024,117860.0,117850.0,0.6252]
[1753049206574,1.33755024,117860.0,117850.0,0.7948311]
[1753049207274,1.33755024,117860.0,117850.0,0.7947111]
[1753049208276,1.1378667,117860.0,117850.0,0.7947111]
[1753049210377,1.33755024,117860.0,117850.0,0.7947111]
[1753049211377,1.33755024,117860.0,117850.0,0.1746311]
[1753049211674,1.33755024,117860.0,117850.0,0.7939111]
[1753049211868,1.33755024,117860.0,117850.0,0.7938711]
[1753049212275,1.1378667,117860.0,117850.0,0.7938711]
[1753049212475,1.33755024,117860.0,117850.0,0.7938711]
[1753049213675,1.1378667,117860.0,117850.0,0.7938711]
[1753049213876,1.33755024,117860.0,117850.0,0.7933911]
[1753049214671,1.16793354,117860.0,117850.0,0.7933911]
[1753049214973,1.1378667,117860.0,117850.0,0.99307464]
[1753049215377,1.1378667,117860.0,117850.0,0.7933911]
[1753049217078,1.1548997,117860.0,117850.0,0.7923911]
[1753049217976,1.35458324,117860.0,117850.0,0.62224]
[1753049218376,1.1548997,117860.0,117850.0,0.7918711]
[1753049218673,1.35458324,117860.0,117850.0,0.7918711]
[1753049219775,1.35458324,117860.0,117850.0,0.1496311]
[1753049219977,0.4809511,117850.0,117840.0,1.40229321]
[1753049220280,1.29143464,117850.0,117840.0,2.01901321]
[1753049220678,1.0917511,117850.0,117840.0,2.01901321]
[1753049220878,1.29143464,117850.0,117840.0,2.01901321]
[1753049221079,1.3084676,117850.0,117840.0,2.01901321]
[1753049221279,1.10878406,117850.0,117840.0,2.01901321]
[1753049221480,1.3084676,117850.0,117840.0,1.3852419]
[1753049221676,0.48098,117830.0,117820.0,0.04562496]
[1753049221872,0.48098,117830.0,117790.0,0.07557992]
[1753049221873,0.4229132,117800.0,117790.0,0.07557992]
[1753049222073,0.4810376,117790.0,117770.0,1.26649136]
[1753049222377,1.40233554,117780.0,117770.0,1.50091144]
[1753049222682,1.66233554,117780.0,117770.0,1.36065784]
[1753049222881,0.07681,117760.0,117750.0,0.17766044]
[1753049223080,1.1018808,117760.0,117750.0,0.8838111]
[1753049223383,0.93212,117760.0,117750.0,0.9997211]
[1753049223575,0.93212,117760.0,117750.0,1.61404021]
[1753049223777,0.57132,117760.0,117750.0,2.16372021]
[1753049223980,0.38132,117760.0,117750.0,1.80292021]
[1753049224385,0.24872,117760.0,117750.0,2.16372021]
[1753049224584,0.11609,117760.0,117750.0,2.16372021]
[1753049224984,0.11609,117760.0,117750.0,1.54520021]
[1753049225184,0.11609,117760.0,117750.0,2.16428021]
[1753049225384,0.2367,117760.0,117750.0,2.16428021]
[1753049226182,0.2377,117760.0,117750.0,2.16628021]
[1753049226382,0.2377,117760.0,117750.0,1.80548021]
[1753049226581,0.2377,117760.0,117750.0,2.16628021]
[1753049226882,0.2377,117760.0,117750.0,2.12795651]
[1753049226883,0.38332,117760.0,117750.0,2.12795651]
[1753049227086,0.7030808,117760.0,117750.0,1.76715651]
[1753049227385,0.222,117760.0,117750.0,2.12795651]
[1753049227583,0.042,117760.0,117750.0,2.48875651]
[1753049228186,0.042,117760.0,117750.0,2.12795651]
[1753049228687,0.2087,117760.0,117750.0,2.12795651]
[1753049229287,0.2087,117760.0,117750.0,2.12695651]
[1753049230286,0.2587,117760.0,117750.0,2.12695651]
[1753049230882,0.092,117760.0,117750.0,2.12695651]
[1753049232289,0.13809,117760.0,117750.0,2.12695651]
[1753049232489,0.2587,117760.0,117750.0,2.12695651]
[1753049232891,0.28218,117760.0,117750.0,2.12695651]
[1753049233095,0.40332,117760.0,117750.0,1.38527651]
[1753049233389,0.61332,117760.0,117750.0,1.45875651]
[1753049233586,0.36332,117760.0,117750.0,2.07607651]
[1753049233789,0.44332,117760.0,117750.0,2.07615651]
[1753049236190,0.44332,117760.0,117750.0,1.8418374]
[1753049236397,0.44332,117760.0,117750.0,1.71535651]
[1753049236593,0.56332,117760.0,117750.0,1.71515651]
[1753049237893,0.56332,117760.0,117750.0,1.38507651]
[1753049238087,0.56332,117760.0,117750.0,1.74587651]
[1753049238392,0.56332,117760.0,117750.0,2.09543651]
[1753049238698,0.56332,117760.0,117750.0,1.73463651]
[1753049238891,0.56332,117760.0,117750.0,1.11795651]
[1753049239097,1.093881,117760.0,117750.0,0.3023154]
[1753049239299,0.733081,117760.0,117750.0,0.9185154]
[1753049239596,0.733081,117760.0,117750.0,0.6222]
[1753049239597,1.32820011,117760.0,117750.0,0.6222]
[1753049239798,1.093881,117760.0,117750.0,0.7919754]
[1753049244412,1.29384877,117760.0,117750.0,0.006]
[1753049244601,1.29384877,117760.0,117750.0,0.6214]
[1753049244912,1.093881,117760.0,117750.0,0.7911754]
[1753049245801,1.093881,117760.0,117750.0,1.11830317]
[1753049246005,1.093881,117760.0,117750.0,1.24227317]
[1753049246909,1.093881,117760.0,117750.0,1.0423054]
[1753049247111,1.093881,117760.0,117750.0,0.9183354]
[1753049249312,1.11161889,117760.0,117750.0,0.9183354]
[1753049249506,1.093881,117760.0,117750.0,0.9183354]
[1753049251107,1.093881,117760.0,117750.0,0.1757754]
[1753049251312,1.093881,117760.0,117750.0,0.7900554]
[1753049251509,1.11164264,117760.0,117750.0,0.7900554]
[1753049252202,1.11164264,117760.0,117750.0,0.8017854]
[1753049253008,1.11164264,117760.0,117750.0,0.9154654]
[1753049253309,1.11164264,117760.0,117750.0,0.3011854]
[1753049253510,1.11164264,117760.0,117750.0,0.9151854]
[1753049254106,1.11164264,117760.0,117750.0,0.2181754]
[1753049254309,1.34597512,117760.0,117750.0,0.006]
[1753049254510,1.34597512,117760.0,117750.0,0.62004]
[1753049255201,1.34597512,117760.0,117750.0,0.6198]
[1753049256507,1.34597512,117760.0,117750.0,0.7895754]
[1753049256706,1.34597512,117760.0,117750.0,0.6198]
[1753049257104,1.34597512,117760.0,117750.0,0.006]
[1753049257311,1.34597512,117760.0,117750.0,0.61988]
[1753049257810,0.4852598,117740.0,117720.0,0.2547138]
[1753049258007,0.4852598,117740.0,117710.0,1.65905415]
[1753049258008,0.1698187,117720.0,117710.0,1.65905415]
[1753049258212,1.0960887,117720.0,117710.0,2.22710415]
[1753049258408,1.0960887,117720.0,117710.0,2.10313415]
[1753049258915,1.0960887,117720.0,117710.0,2.0426154]
[1753049259114,1.0960887,117720.0,117710.0,2.1665854]
[1753049259310,1.0960887,117720.0,117710.0,2.2120954]
[1753049260013,1.0960887,117720.0,117710.0,2.1696376]
[1753049260716,1.0970887,117720.0,117710.0,2.131181]
[1753049261416,1.0980887,117720.0,117710.0,1.79408]
[1753049261912,1.0980887,117720.0,117710.0,1.18132]
[1753049262112,1.33242118,117720.0,117710.0,1.18132]
[1753049262314,0.4853031,117710.0,117700.0,0.04051875]
[1753049262512,0.5277824,117700.0,117690.0,0.06102476]
[1753049262711,1.20784468,117700.0,117690.0,0.61336]
[1753049262911,1.2010473,117700.0,117690.0,0.7832219]
[1753049263116,1.21986653,117700.0,117690.0,0.6706]
[1753049263517,1.21986653,117700.0,117690.0,0.2271019]
[1753049263716,1.21986653,117700.0,117690.0,0.8403819]
[1753049263913,1.22086653,117700.0,117690.0,0.8463819]
[1753049264322,0.4853464,117680.0,117670.0,8e-05]
[1753049264523,1.70990557,117680.0,117670.0,8e-05]
[1753049264817,2.12986557,117680.0,117670.0,0.61364]
[1753049265317,0.1699052,117660.0,117650.0,0.15013993]
[1753049265617,0.1699052,117660.0,117650.0,0.00164993]
[1753049265618,1.74021265,117660.0,117650.0,0.00164993]
[1753049265818,1.74434044,117660.0,117650.0,0.61584993]
[1753049266216,1.74434044,117660.0,117650.0,0.00164993]
[1753049266420,0.4854041,117640.0,117630.0,0.00216854]
[1753049266622,1.68133658,117640.0,117630.0,0.78755714]
[1753049266813,1.87051254,117640.0,117630.0,0.61760854]
[1753049267016,1.87051254,117640.0,117630.0,0.78755714]
[1753049267318,1.93868226,117640.0,117630.0,0.61840854]
[1753049267512,1.76866626,117640.0,117630.0,0.94865714]
[1753049267914,1.40786626,117640.0,117630.0,0.82468714]
[1753049268112,1.76866626,117640.0,117630.0,0.78843714]
[1753049268317,1.77266626,117640.0,117630.0,0.00216854]
[1753049268515,0.4854186,117630.0,117620.0,0.24553092]
[1753049268713,1.37055108,117630.0,117620.0,0.86186292]
[1753049269314,1.1362186,117630.0,117620.0,0.86330292]
[1753049269518,1.1127786,117630.0,117620.0,0.489373]
[1753049269821,1.1127786,117630.0,117620.0,1.107333]
[1753049270320,0.3765641,117620.0,117610.0,0.01173]
[1753049270522,1.48462028,117620.0,117610.0,0.93705]
[1753049270722,1.2737278,117620.0,117610.0,1.1070275]
[1753049270918,1.1462475,117620.0,117610.0,1.18301354]
[1753049271119,0.6608,117620.0,117610.0,1.35827648]
[1753049271426,0.303,117620.0,117610.0,1.79506281]
[1753049271620,0.472963,117620.0,117610.0,1.79566281]
[1753049271924,0.533833,117620.0,117610.0,0.867104]
[1753049272122,0.566383,117620.0,117610.0,1.485584]
[1753049272322,0.687243,117620.0,117610.0,0.94306246]
[1753049272522,1.125793,117620.0,117610.0,2.18924846]
[1753049272723,1.125793,117620.0,117610.0,2.35922596]
[1753049272925,0.95483,117620.0,117610.0,2.35922596]
[1753049273228,0.47417,117620.0,117610.0,2.72102596]
[1753049273417,0.303,117620.0,117610.0,2.95535844]
[1753049273928,0.303,117620.0,117610.0,2.72102596]
[1753049274124,0.303,117620.0,117610.0,2.87939998]
[1753049274727,0.472963,117620.0,117610.0,2.87939998]
[1753049274922,0.303,117620.0,117610.0,2.72099011]
[1753049275119,0.472963,117620.0,117610.0,2.95532259]
[1753049275325,0.303,117620.0,117610.0,2.95532259]
[1753049275526,0.472963,117620.0,117610.0,2.95532259]
[1753049276330,0.303,117620.0,117610.0,2.94013173]
[1753049276625,0.303,117620.0,117610.0,2.87939998]
[1753049276820,0.63944166,117640.0,117630.0,0.4846386]
[1753049277026,0.50995996,117640.0,117630.0,1.33865108]
[1753049277227,0.67989406,117640.0,117630.0,1.1043186]
[1753049277428,0.72695406,117640.0,117630.0,1.1043186]
[1753049277929,0.55701996,117640.0,117630.0,1.1043186]
[1753049278317,0.56501996,117640.0,117630.0,1.1043186]
[1753049278832,0.56601996,117640.0,117630.0,1.1063186]
[1753049279024,0.15815996,117640.0,117630.0,1.70145108]
[1753049279328,0.15815996,117640.0,117630.0,1.4671186]
[1753049280724,0.15815996,117640.0,117630.0,1.70145108]
[1753049281429,0.15815996,117640.0,117630.0,1.08177108]
[1753049281631,0.15815996,117640.0,117630.0,1.4672386]
[1753049281923,0.15815996,117640.0,117630.0,1.70157108]
[1753049282431,0.15815996,117640.0,117630.0,1.4672386]
[1753049282627,0.15815996,117640.0,117630.0,1.70157108]
[1753049283027,0.139,117640.0,117630.0,1.70157108]
[1753049285330,0.189,117640.0,117630.0,1.70157108]
[1753049287422,0.189,117640.0,117630.0,1.70165108]
[1753049291534,0.189,117640.0,117630.0,2.04165108]
[1753049292932,0.189,117640.0,117630.0,1.42177108]
[1753049293135,0.48123,117640.0,117630.0,2.2910386]
[1753049293435,0.48123,117640.0,117630.0,2.29126249]
[1753049294333,0.48123,117640.0,117630.0,2.52559497]
[1753049294537,0.48123,117640.0,117630.0,2.26727497]
[1753049294736,0.48123,117640.0,117630.0,3.19639497]
[1753049295441,0.48123,117640.0,117630.0,1.66214249]
[1753049295729,0.48123,117640.0,117630.0,2.87679497]
[1753049296237,0.48123,117640.0,117630.0,2.88679497]
[1753049296634,0.6511641,117640.0,117630.0,1.67214249]
[1753049296829,0.6511641,117640.0,117630.0,2.29150249]
[1753049296830,0.48123,117640.0,117630.0,2.29150249]
[1753049297537,0.48123,117640.0,117630.0,1.67214249]
[1753049297738,0.48123,117640.0,117630.0,2.29158249]
[1753049298038,0.48123,117640.0,117630.0,2.65238249]
[1753049298235,0.48123,117640.0,117630.0,2.88671497]
[1753049298437,0.35785,117640.0,117630.0,2.88671497]
[1753049299542,0.37685815,117640.0,117630.0,2.88671497]
[1753049300241,0.35785,117640.0,117630.0,2.88671497]
[1753049300943,0.26921,117640.0,117630.0,2.88663497]
[1753049302035,0.28822324,117640.0,117630.0,2.88663497]
[1753049302238,0.6511641,117640.0,117630.0,1.67214249]
[1753049302637,0.48123,117640.0,117630.0,2.29146249]
[1753049302838,0.6511641,117640.0,117630.0,1.50219389]
[1753049303040,1.27094658,117640.0,117630.0,2.12171389]
[1753049303245,1.25604024,117640.0,117630.0,0.01222389]
[1753049303441,1.25604024,117640.0,117630.0,0.62158389]
[1753049303643,1.25604024,117640.0,117630.0,0.00222389]
[1753049303838,1.25604024,117640.0,117630.0,0.62206389]
[1753049304444,1.25604024,117640.0,117630.0,0.00222389]
[1753049304641,1.25604024,117640.0,117630.0,0.62194389]
[1753049305043,1.87646571,117640.0,117610.0,0.19899]
[1753049305244,1.07218467,117620.0,117610.0,1.32442]
[1753049305442,1.41000846,117620.0,117610.0,1.94418]
[1753049305637,1.41000846,117620.0,117610.0,1.32442]
[1753049305842,1.41000846,117620.0,117610.0,1.81977]
[1753049306045,1.41000846,117620.0,117610.0,1.9897475]
[1753049306241,1.41000846,117620.0,117610.0,1.81977]
[1753049306434,1.41100846,117620.0,117610.0,1.17536]
[1753049306747,1.77180846,117620.0,117610.0,1.79484]
[1753049307141,1.94687644,117620.0,117610.0,1.17536]
[1753049307344,2.19687644,117620.0,117610.0,1.76972]
[1753049307542,0.1699775,117610.0,117600.0,0.005]
[1753049307744,0.84979417,117610.0,117600.0,0.005]
[1753049307947,1.50478984,117610.0,117600.0,0.005]
[1753049308337,1.26985817,117610.0,117600.0,0.005]
[1753049308543,1.50478984,117610.0,117600.0,0.005]
[1753049308944,1.58982023,117610.0,117600.0,0.005]
[1753049309243,1.59082023,117610.0,117600.0,0.005]
[1753049309443,1.59182023,117610.0,117600.0,0.005]
[1753049309639,1.59382023,117610.0,117600.0,0.005]
[1753049310240,1.59482023,117610.0,117600.0,0.005]
[1753049310643,0.1700498,117560.0,117550.0,0.17133]
[1753049310848,0.2125831,117550.0,117540.0,0.85061]
[1753049311044,0.8533831,117550.0,117540.0,1.0206887]
[1753049311249,0.8533831,117550.0,117540.0,0.4852087]
[1753049311451,0.8533831,117550.0,117540.0,1.1280087]
[1753049311752,0.8725347,117550.0,117540.0,1.1286887]
[1753049311954,0.8725347,117550.0,117540.0,0.95861]
[1753049312147,1.10746637,117550.0,117540.0,0.95861]
[1753049312444,0.8725347,117550.0,117540.0,0.85193]
[1753049312644,0.8775347,117550.0,117540.0,0.4852087]
[1753049312845,0.3041516,117550.0,117540.0,1.72494037]
[1753049313444,0.285,117550.0,117540.0,1.72494037]
[1753049314150,0.285,117550.0,117540.0,0.8460087]
[1753049314444,0.4250642,117550.0,117540.0,1.72606037]
[1753049314751,0.255,117550.0,117540.0,1.72642037]
[1753049316241,0.255,117550.0,117540.0,1.4914887]
[1753049316452,1.02079587,117550.0,117540.0,0.23963]
[1753049316652,1.02079587,117550.0,117540.0,0.88591]
[1753049316953,1.02079587,117550.0,117540.0,0.17133]
[1753049317152,1.02079587,117550.0,117540.0,0.81769]
[1753049317743,1.02079587,117550.0,117540.0,0.81993]
[1753049317944,0.7858642,117550.0,117540.0,0.8447]
[1753049318151,1.02079587,117550.0,117540.0,0.8447]
[1753049318751,1.02079587,117550.0,117540.0,0.1961]
[1753049318951,1.02079587,117550.0,117540.0,0.8447]
[1753049319457,0.7858642,117550.0,117540.0,0.23963]
[1753049319755,0.7858642,117550.0,117540.0,0.88783]
[1753049320145,0.7008346,117550.0,117510.0,0.37770917]
[1753049320345,0.042545,117470.0,117450.0,0.04694623]
[1753049320547,0.1702235,117440.0,117430.0,0.17360305]
[1753049320750,0.7810235,117440.0,117430.0,0.19837305]
[1753049320953,0.7810235,117440.0,117430.0,0.85625305]
[1753049321151,0.7810235,117440.0,117430.0,0.85709305]
[1753049321348,0.7810235,117440.0,117430.0,0.19837305]
[1753049321655,0.7810235,117440.0,117430.0,0.85733305]
[1753049322248,0.7810235,117440.0,117430.0,1.43280672]
[1753049322249,0.3908,117440.0,117430.0,1.43280672]
[1753049322448,0.3608,117470.0,117450.0,0.1961]
[1753049322649,0.6608,117470.0,117460.0,1.5424145]
[1753049323052,0.47018,117470.0,117460.0,2.0339]
[1753049323260,0.53098,117470.0,117460.0,2.2040945]
[1753049323546,0.4708,117470.0,117460.0,2.0339]
[1753049323747,0.81098,117470.0,117460.0,1.37222]
[1753049323947,1.04591167,117470.0,117460.0,1.37222]
[1753049324344,1.04591167,117470.0,117460.0,2.02133]
[1753049324753,1.04591167,117470.0,117460.0,2.02161]
[1753049324947,1.04791167,117470.0,117460.0,1.34745]
[1753049325148,0.170209,117450.0,117440.0,0.02477]
[1753049325346,1.191809,117450.0,117440.0,0.87038]
[1753049325544,0.8416,117450.0,117440.0,1.0406035]
[1753049325751,1.40674067,117450.0,117440.0,0.1961]
[1753049325951,0.04,117450.0,117440.0,1.27665517]
[1753049326151,0.3108,117460.0,117450.0,0.366309]
[1753049326454,0.3108,117460.0,117450.0,0.98124067]
[1753049326647,0.3608,117480.0,117450.0,1.21438087]
[1753049326854,0.6008,117480.0,117470.0,0.36628]
[1753049327154,0.7709655,117480.0,117470.0,0.36628]
[1753049327354,0.7709655,117480.0,117470.0,1.04264]
[1753049328950,0.6008,117480.0,117470.0,0.36628]
[1753049329150,0.70462393,117480.0,117470.0,0.31924]
[1753049329358,0.9395556,117480.0,117470.0,1.04308]
[1753049329547,0.9035556,117480.0,117470.0,0.1961]
[1753049329746,0.9035556,117480.0,117470.0,1.04252]
[1753049329947,0.1702235,117440.0,117430.0,0.00227305]
[1753049330147,0.8010235,117440.0,117430.0,0.00227305]
[1753049330353,0.9713275,117440.0,117430.0,0.00227305]
[1753049330652,1.20625917,117440.0,117430.0,0.00227305]
[1753049330951,0.6308,117440.0,117430.0,0.87761305]
[1753049331160,0.8010235,117440.0,117430.0,0.87761305]
[1753049331344,1.03695517,117440.0,117430.0,0.87761305]
[1753049331960,1.03595517,117440.0,117430.0,0.87761305]
[1753049332263,1.03995517,117440.0,117430.0,0.87733305]
[1753049332555,1.03695517,117440.0,117430.0,0.87733305]
[1753049332853,1.03995517,117440.0,117430.0,0.87689305]
[1753049333053,0.1702525,117420.0,117410.0,0.1961]
[1753049333249,1.42935797,117420.0,117410.0,0.02477]
[1753049333447,1.12678417,117420.0,117410.0,0.873397]
[1753049333653,0.3608,117430.0,117420.0,0.14906]
[1753049333851,1.03596967,117430.0,117420.0,0.1961]
[1753049334446,1.03596967,117430.0,117420.0,0.87414]
[1753049334857,1.03596967,117430.0,117420.0,0.8751]
[1753049335257,1.03796967,117430.0,117420.0,0.8751]
[1753049335453,0.272,117430.0,117420.0,1.28028417]
[1753049335657,0.102,117430.0,117420.0,1.0453525]
[1753049335853,0.4698,117430.0,117420.0,1.0453525]
[1753049336257,0.6498,117430.0,117420.0,1.0453525]
[1753049336460,0.3698,117430.0,117420.0,1.0453525]
[1753049336650,0.4098,117430.0,117420.0,1.0453525]
[1753049337055,0.4098,117430.0,117420.0,1.28028417]
[1753049337255,0.4098,117430.0,117420.0,1.0453525]
[1753049337765,1.42576967,117430.0,117420.0,0.84893]
[1753049338158,1.42576967,117430.0,117420.0,0.84925]
[1753049338562,0.1702525,117420.0,117410.0,0.16995]
[1753049338757,0.8310525,117420.0,117410.0,0.84803]
[1753049338959,1.06598417,117420.0,117410.0,0.87267]
[1753049339966,0.8360525,117420.0,117410.0,0.84803]
[1753049340158,1.07098417,117420.0,117410.0,0.84803]
[1753049340659,0.6658,117420.0,117410.0,1.042937]
[1753049340853,0.8360525,117420.0,117410.0,0.87267]
[1753049341060,1.07198417,117420.0,117410.0,0.87267]
[1753049341259,1.07198417,117420.0,117410.0,0.19459]
[1753049341455,1.07198417,117420.0,117410.0,0.87299]
[1753049341660,1.07198417,117420.0,117410.0,0.19459]
[1753049341868,1.07198417,117420.0,117410.0,0.87299]
[1753049342766,0.8370525,117420.0,117410.0,1.043257]
[1753049342968,0.6670525,117420.0,117410.0,1.043257]
[1753049343167,0.136,117420.0,117410.0,1.27818867]
[1753049343371,0.006,117420.0,117410.0,0.364857]
[1753049343669,0.70118417,117420.0,117410.0,0.364857]
[1753049343973,0.88198417,117420.0,117410.0,1.043377]
[1753049344168,1.03198417,117420.0,117410.0,0.87351]
[1753049345373,1.03198417,117420.0,117410.0,0.87363]
[1753049345573,1.03198417,117420.0,117410.0,0.19459]
[1753049345774,1.03198417,117420.0,117410.0,0.87319]
[1753049346370,0.170267,117410.0,117400.0,0.17495]
[1753049346570,1.02599867,117410.0,117400.0,0.85379]
[1753049346774,1.03252774,117410.0,117400.0,0.85379]